Workbook

Sheet Options
A1: 6
C8: Description and details of Macro
C11: Purpose: | E11: Macro to update vote baseline and COE ceiling numbers on the MTEC Submission workbook
C12: Sheets: | E12: Background sheets
C13: Applicable to: | E13: MTEC Submission workbook
C14: Date of macro: | E14: 2020-08-25
C15: Effective until:
C16: More Information: | E16: This macro will make the following adjustments to the model: 1. Update vote baseline and COE ceiling numbers To make sure that all calculations are updated, do the following: After running the macro on the MTEC Submission workbook, SAVE THE WORKBOOK BEFORE CLOSING!
I88: Check: Compensation of employees ceiling (Under/(Over)) | N88: =#REF!-N51 -> 
E120: Checks
E121: Over / (under) Programme total less Economic classification total | H121: 0 | I121: 0 | K121: 0.3334899545 | M121: 0 | N121: 0
E122: Over / (under) Column H row 115 not equal to Adjusted Appropriation reflected in ENE 2015. | H122: 0
K143: 0 | L143: 0 | M143: 0 | N143: 0

Sheet Out (hidden)
C3: Departmental | D3: =SUM(D5:D46) -> 1725821804 | E3: 1779927618 | F3: 1809173684 | I3: Compensation | J3: =SUM(J5:J46) -> 174074489 | K3: 173550534 | L3: 170610698
C4: Department | D4: 2021/22 Ceiling | E4: 2022/23 Ceiling | F4: 2023/24 Ceiling | I4: Department | J4: 2021/22 Ceiling | K4: 2022/23 Ceiling | L4: 2023/24 Ceiling
C5: Agriculture, Land Reform and Rural Development | D5: =INDEX((In!H$3:H$44),MATCH(Out!$C5,In!$A$3:$A$44,0)) -> 16462194 | E5: =INDEX((In!I$3:I$44),MATCH(Out!$C5,In!$A$3:$A$44,0)) -> 16388334 | F5: =INDEX((In!J$3:J$44),MATCH(Out!$C5,In!$A$3:$A$44,0)) -> 16403340 | I5: Agriculture, Land Reform and Rural Development | J5: =INDEX((In!E$3:E$44),MATCH(Out!$I5,In!$A$3:$A$44,0)) -> 4099498 | K5: =INDEX((In!F$3:F$44),MATCH(Out!$I5,In!$A$3:$A$44,0)) -> 4089644 | L5: =INDEX((In!G$3:G$44),MATCH(Out!$I5,In!$A$3:$A$44,0)) -> 4020368
C6: Basic Education | D6: =INDEX((In!H$3:H$44),MATCH(Out!$C6,In!$A$3:$A$44,0)) -> 25724561 | E6: =INDEX((In!I$3:I$44),MATCH(Out!$C6,In!$A$3:$A$44,0)) -> 26089272 | F6: =INDEX((In!J$3:J$44),MATCH(Out!$C6,In!$A$3:$A$44,0)) -> 26097727 | I6: Basic Education | J6: =INDEX((In!E$3:E$44),MATCH(Out!$I6,In!$A$3:$A$44,0)) -> 541405 | K6: =INDEX((In!F$3:F$44),MATCH(Out!$I6,In!$A$3:$A$44,0)) -> 540000 | L6: =INDEX((In!G$3:G$44),MATCH(Out!$I6,In!$A$3:$A$44,0)) -> 530853
C7: Civilian Secretariat for the Police Service | D7: =INDEX((In!H$3:H$44),MATCH(Out!$C7,In!$A$3:$A$44,0)) -> 148175 | E7: =INDEX((In!I$3:I$44),MATCH(Out!$C7,In!$A$3:$A$44,0)) -> 148221 | F7: =INDEX((In!J$3:J$44),MATCH(Out!$C7,In!$A$3:$A$44,0)) -> 148526 | I7: Civilian Secretariat for the Police Service | J7: =INDEX((In!E$3:E$44),MATCH(Out!$I7,In!$A$3:$A$44,0)) -> 103839 | K7: =INDEX((In!F$3:F$44),MATCH(Out!$I7,In!$A$3:$A$44,0)) -> 103564 | L7: =INDEX((In!G$3:G$44),MATCH(Out!$I7,In!$A$3:$A$44,0)) -> 101809
C8: Communications and Digital Technologies | D8: =INDEX((In!H$3:H$44),MATCH(Out!$C8,In!$A$3:$A$44,0)) -> 3593755 | E8: =INDEX((In!I$3:I$44),MATCH(Out!$C8,In!$A$3:$A$44,0)) -> 2317686 | F8: =INDEX((In!J$3:J$44),MATCH(Out!$C8,In!$A$3:$A$44,0)) -> 2319121 | I8: Communications and Digital Technologies | J8: =INDEX((In!E$3:E$44),MATCH(Out!$I8,In!$A$3:$A$44,0)) -> 322804 | K8: =INDEX((In!F$3:F$44),MATCH(Out!$I8,In!$A$3:$A$44,0)) -> 321757 | L8: =INDEX((In!G$3:G$44),MATCH(Out!$I8,In!$A$3:$A$44,0)) -> 316307
C9: Cooperative Governance | D9: =INDEX((In!H$3:H$44),MATCH(Out!$C9,In!$A$3:$A$44,0)) -> 98283081 | E9: =INDEX((In!I$3:I$44),MATCH(Out!$C9,In!$A$3:$A$44,0)) -> 102073783 | F9: =INDEX((In!J$3:J$44),MATCH(Out!$C9,In!$A$3:$A$44,0)) -> 102102360 | I9: Cooperative Governance | J9: =INDEX((In!E$3:E$44),MATCH(Out!$I9,In!$A$3:$A$44,0)) -> 366155 | K9: =INDEX((In!F$3:F$44),MATCH(Out!$I9,In!$A$3:$A$44,0)) -> 365032 | L9: =INDEX((In!G$3:G$44),MATCH(Out!$I9,In!$A$3:$A$44,0)) -> 358848
C10: Correctional Services | D10: =INDEX((In!H$3:H$44),MATCH(Out!$C10,In!$A$3:$A$44,0)) -> 25481767 | E10: =INDEX((In!I$3:I$44),MATCH(Out!$C10,In!$A$3:$A$44,0)) -> 25508962 | F10: =INDEX((In!J$3:J$44),MATCH(Out!$C10,In!$A$3:$A$44,0)) -> 25559215 | I10: Correctional Services | J10: =INDEX((In!E$3:E$44),MATCH(Out!$I10,In!$A$3:$A$44,0)) -> 17428197 | K10: =INDEX((In!F$3:F$44),MATCH(Out!$I10,In!$A$3:$A$44,0)) -> 17369347 | L10: =INDEX((In!G$3:G$44),MATCH(Out!$I10,In!$A$3:$A$44,0)) -> 17075121
C11: Defence | D11: =INDEX((In!H$3:H$44),MATCH(Out!$C11,In!$A$3:$A$44,0)) -> 45398357 | E11: =INDEX((In!I$3:I$44),MATCH(Out!$C11,In!$A$3:$A$44,0)) -> 45428731 | F11: =INDEX((In!J$3:J$44),MATCH(Out!$C11,In!$A$3:$A$44,0)) -> 45515030 | I11: Defence | J11: =INDEX((In!E$3:E$44),MATCH(Out!$I11,In!$A$3:$A$44,0)) -> 28894120 | K11: =INDEX((In!F$3:F$44),MATCH(Out!$I11,In!$A$3:$A$44,0)) -> 28819486 | L11: =INDEX((In!G$3:G$44),MATCH(Out!$I11,In!$A$3:$A$44,0)) -> 28331302
C12: Employment and Labour | D12: =INDEX((In!H$3:H$44),MATCH(Out!$C12,In!$A$3:$A$44,0)) -> 3441125 | E12: =INDEX((In!I$3:I$44),MATCH(Out!$C12,In!$A$3:$A$44,0)) -> 3435356 | F12: =INDEX((In!J$3:J$44),MATCH(Out!$C12,In!$A$3:$A$44,0)) -> 3439828 | I12: Employment and Labour | J12: =INDEX((In!E$3:E$44),MATCH(Out!$I12,In!$A$3:$A$44,0)) -> 1382667 | K12: =INDEX((In!F$3:F$44),MATCH(Out!$I12,In!$A$3:$A$44,0)) -> 1379094 | L12: =INDEX((In!G$3:G$44),MATCH(Out!$I12,In!$A$3:$A$44,0)) -> 1355733
C13: Environment, Forestry and Fisheries | D13: =INDEX((In!H$3:H$44),MATCH(Out!$C13,In!$A$3:$A$44,0)) -> 8462278 | E13: =INDEX((In!I$3:I$44),MATCH(Out!$C13,In!$A$3:$A$44,0)) -> 8460777 | F13: =INDEX((In!J$3:J$44),MATCH(Out!$C13,In!$A$3:$A$44,0)) -> 8467911 | I13: Environment, Forestry and Fisheries | J13: =INDEX((In!E$3:E$44),MATCH(Out!$I13,In!$A$3:$A$44,0)) -> 1909148 | K13: =INDEX((In!F$3:F$44),MATCH(Out!$I13,In!$A$3:$A$44,0)) -> 1903696 | L13: =INDEX((In!G$3:G$44),MATCH(Out!$I13,In!$A$3:$A$44,0)) -> 1871449
C14: Government Communication and Information System | D14: =INDEX((In!H$3:H$44),MATCH(Out!$C14,In!$A$3:$A$44,0)) -> 684316 | E14: =INDEX((In!I$3:I$44),MATCH(Out!$C14,In!$A$3:$A$44,0)) -> 683551 | F14: =INDEX((In!J$3:J$44),MATCH(Out!$C14,In!$A$3:$A$44,0)) -> 684457 | I14: Government Communication and Information System | J14: =INDEX((In!E$3:E$44),MATCH(Out!$I14,In!$A$3:$A$44,0)) -> 273728 | K14: =INDEX((In!F$3:F$44),MATCH(Out!$I14,In!$A$3:$A$44,0)) -> 273238 | L14: =INDEX((In!G$3:G$44),MATCH(Out!$I14,In!$A$3:$A$44,0)) -> 268609
C15: Health | D15: =INDEX((In!H$3:H$44),MATCH(Out!$C15,In!$A$3:$A$44,0)) -> 56960689 | E15: =INDEX((In!I$3:I$44),MATCH(Out!$C15,In!$A$3:$A$44,0)) -> 57801682 | F15: =INDEX((In!J$3:J$44),MATCH(Out!$C15,In!$A$3:$A$44,0)) -> 57818762 | I15: Health | J15: =INDEX((In!E$3:E$44),MATCH(Out!$I15,In!$A$3:$A$44,0)) -> 834283 | K15: =INDEX((In!F$3:F$44),MATCH(Out!$I15,In!$A$3:$A$44,0)) -> 824411 | L15: =INDEX((In!G$3:G$44),MATCH(Out!$I15,In!$A$3:$A$44,0)) -> 810446
C16: Higher Education and Training | D16: =INDEX((In!H$3:H$44),MATCH(Out!$C16,In!$A$3:$A$44,0)) -> 113769400 | E16: =INDEX((In!I$3:I$44),MATCH(Out!$C16,In!$A$3:$A$44,0)) -> 115264244 | F16: =INDEX((In!J$3:J$44),MATCH(Out!$C16,In!$A$3:$A$44,0)) -> 115319849 | I16: Higher Education and Training | J16: =INDEX((In!E$3:E$44),MATCH(Out!$I16,In!$A$3:$A$44,0)) -> 9527912 | K16: =INDEX((In!F$3:F$44),MATCH(Out!$I16,In!$A$3:$A$44,0)) -> 9503041 | L16: =INDEX((In!G$3:G$44),MATCH(Out!$I16,In!$A$3:$A$44,0)) -> 9342066
C17: Home Affairs | D17: =INDEX((In!H$3:H$44),MATCH(Out!$C17,In!$A$3:$A$44,0)) -> 8686084 | E17: =INDEX((In!I$3:I$44),MATCH(Out!$C17,In!$A$3:$A$44,0)) -> 8701973 | F17: =INDEX((In!J$3:J$44),MATCH(Out!$C17,In!$A$3:$A$44,0)) -> 8710229 | I17: Home Affairs | J17: =INDEX((In!E$3:E$44),MATCH(Out!$I17,In!$A$3:$A$44,0)) -> 3592336 | K17: =INDEX((In!F$3:F$44),MATCH(Out!$I17,In!$A$3:$A$44,0)) -> 3547576 | L17: =INDEX((In!G$3:G$44),MATCH(Out!$I17,In!$A$3:$A$44,0)) -> 3487482
C18: Human Settlements | D18: =INDEX((In!H$3:H$44),MATCH(Out!$C18,In!$A$3:$A$44,0)) -> 29917175 | E18: =INDEX((In!I$3:I$44),MATCH(Out!$C18,In!$A$3:$A$44,0)) -> 29917456 | F18: =INDEX((In!J$3:J$44),MATCH(Out!$C18,In!$A$3:$A$44,0)) -> 29926591 | I18: Human Settlements | J18: =INDEX((In!E$3:E$44),MATCH(Out!$I18,In!$A$3:$A$44,0)) -> 401740 | K18: =INDEX((In!F$3:F$44),MATCH(Out!$I18,In!$A$3:$A$44,0)) -> 400697 | L18: =INDEX((In!G$3:G$44),MATCH(Out!$I18,In!$A$3:$A$44,0)) -> 393910
C19: Independent Police Investigative Directorate | D19: =INDEX((In!H$3:H$44),MATCH(Out!$C19,In!$A$3:$A$44,0)) -> 337108 | E19: =INDEX((In!I$3:I$44),MATCH(Out!$C19,In!$A$3:$A$44,0)) -> 337241 | F19: =INDEX((In!J$3:J$44),MATCH(Out!$C19,In!$A$3:$A$44,0)) -> 337906 | I19: Independent Police Investigative Directorate | J19: =INDEX((In!E$3:E$44),MATCH(Out!$I19,In!$A$3:$A$44,0)) -> 224816 | K19: =INDEX((In!F$3:F$44),MATCH(Out!$I19,In!$A$3:$A$44,0)) -> 224215 | L19: =INDEX((In!G$3:G$44),MATCH(Out!$I19,In!$A$3:$A$44,0)) -> 220417
C20: International Relations and Cooperation | D20: =INDEX((In!H$3:H$44),MATCH(Out!$C20,In!$A$3:$A$44,0)) -> 6395681 | E20: =INDEX((In!I$3:I$44),MATCH(Out!$C20,In!$A$3:$A$44,0)) -> 6416928 | F20: =INDEX((In!J$3:J$44),MATCH(Out!$C20,In!$A$3:$A$44,0)) -> 6425953 | I20: International Relations and Cooperation | J20: =INDEX((In!E$3:E$44),MATCH(Out!$I20,In!$A$3:$A$44,0)) -> 2841965 | K20: =INDEX((In!F$3:F$44),MATCH(Out!$I20,In!$A$3:$A$44,0)) -> 2834719 | L20: =INDEX((In!G$3:G$44),MATCH(Out!$I20,In!$A$3:$A$44,0)) -> 2786701
C21: Justice and Constitutional Development | D21: =INDEX((In!H$3:H$44),MATCH(Out!$C21,In!$A$3:$A$44,0)) -> 21195789 | E21: =INDEX((In!I$3:I$44),MATCH(Out!$C21,In!$A$3:$A$44,0)) -> 21189453 | F21: =INDEX((In!J$3:J$44),MATCH(Out!$C21,In!$A$3:$A$44,0)) -> 21225975 | I21: Justice and Constitutional Development | J21: =INDEX((In!E$3:E$44),MATCH(Out!$I21,In!$A$3:$A$44,0)) -> 11990486 | K21: =INDEX((In!F$3:F$44),MATCH(Out!$I21,In!$A$3:$A$44,0)) -> 11960325 | L21: =INDEX((In!G$3:G$44),MATCH(Out!$I21,In!$A$3:$A$44,0)) -> 11757725
C22: Military Veterans | D22: =INDEX((In!H$3:H$44),MATCH(Out!$C22,In!$A$3:$A$44,0)) -> 656108 | E22: =INDEX((In!I$3:I$44),MATCH(Out!$C22,In!$A$3:$A$44,0)) -> 655760 | F22: =INDEX((In!J$3:J$44),MATCH(Out!$C22,In!$A$3:$A$44,0)) -> 656254 | I22: Military Veterans | J22: =INDEX((In!E$3:E$44),MATCH(Out!$I22,In!$A$3:$A$44,0)) -> 126686 | K22: =INDEX((In!F$3:F$44),MATCH(Out!$I22,In!$A$3:$A$44,0)) -> 126273 | L22: =INDEX((In!G$3:G$44),MATCH(Out!$I22,In!$A$3:$A$44,0)) -> 124134
C23: Mineral Resources and Energy | D23: =INDEX((In!H$3:H$44),MATCH(Out!$C23,In!$A$3:$A$44,0)) -> 8734317 | E23: =INDEX((In!I$3:I$44),MATCH(Out!$C23,In!$A$3:$A$44,0)) -> 9331524 | F23: =INDEX((In!J$3:J$44),MATCH(Out!$C23,In!$A$3:$A$44,0)) -> 9336705 | I23: Mineral Resources and Energy | J23: =INDEX((In!E$3:E$44),MATCH(Out!$I23,In!$A$3:$A$44,0)) -> 1036210 | K23: =INDEX((In!F$3:F$44),MATCH(Out!$I23,In!$A$3:$A$44,0)) -> 1033526 | L23: =INDEX((In!G$3:G$44),MATCH(Out!$I23,In!$A$3:$A$44,0)) -> 1016019
C24: National School of Government | D24: =INDEX((In!H$3:H$44),MATCH(Out!$C24,In!$A$3:$A$44,0)) -> 197517 | E24: =INDEX((In!I$3:I$44),MATCH(Out!$C24,In!$A$3:$A$44,0)) -> 195917 | F24: =INDEX((In!J$3:J$44),MATCH(Out!$C24,In!$A$3:$A$44,0)) -> 196117 | I24: National School of Government | J24: =INDEX((In!E$3:E$44),MATCH(Out!$I24,In!$A$3:$A$44,0)) -> 57849 | K24: =INDEX((In!F$3:F$44),MATCH(Out!$I24,In!$A$3:$A$44,0)) -> 57700 | L24: =INDEX((In!G$3:G$44),MATCH(Out!$I24,In!$A$3:$A$44,0)) -> 56722
C25: National Treasury | D25: =INDEX((In!H$3:H$44),MATCH(Out!$C25,In!$A$3:$A$44,0)) -> 819770422 | E25: =INDEX((In!I$3:I$44),MATCH(Out!$C25,In!$A$3:$A$44,0)) -> 862537484 | F25: =INDEX((In!J$3:J$44),MATCH(Out!$C25,In!$A$3:$A$44,0)) -> 891106216 | I25: National Treasury | J25: =INDEX((In!E$3:E$44),MATCH(Out!$I25,In!$A$3:$A$44,0)) -> 860894 | K25: =INDEX((In!F$3:F$44),MATCH(Out!$I25,In!$A$3:$A$44,0)) -> 858670 | L25: =INDEX((In!G$3:G$44),MATCH(Out!$I25,In!$A$3:$A$44,0)) -> 844125
C26: Not defined | D26: =INDEX((In!H$3:H$44),MATCH(Out!$C26,In!$A$3:$A$44,0)) -> 3773184 | E26: =INDEX((In!I$3:I$44),MATCH(Out!$C26,In!$A$3:$A$44,0)) -> 5489386 | F26: =INDEX((In!J$3:J$44),MATCH(Out!$C26,In!$A$3:$A$44,0)) -> 5490874 | I26: Not defined | J26: =INDEX((In!E$3:E$44),MATCH(Out!$I26,In!$A$3:$A$44,0)) -> 0 | K26: =INDEX((In!F$3:F$44),MATCH(Out!$I26,In!$A$3:$A$44,0)) -> 0 | L26: =INDEX((In!G$3:G$44),MATCH(Out!$I26,In!$A$3:$A$44,0)) -> 0
C27: Office of the Chief Justice | D27: =INDEX((In!H$3:H$44),MATCH(Out!$C27,In!$A$3:$A$44,0)) -> 2309481 | E27: =INDEX((In!I$3:I$44),MATCH(Out!$C27,In!$A$3:$A$44,0)) -> 2311114 | F27: =INDEX((In!J$3:J$44),MATCH(Out!$C27,In!$A$3:$A$44,0)) -> 2316289 | I27: Office of the Chief Justice | J27: =INDEX((In!E$3:E$44),MATCH(Out!$I27,In!$A$3:$A$44,0)) -> 1733123 | K27: =INDEX((In!F$3:F$44),MATCH(Out!$I27,In!$A$3:$A$44,0)) -> 1729844 | L27: =INDEX((In!G$3:G$44),MATCH(Out!$I27,In!$A$3:$A$44,0)) -> 1700541
C28: Parliament | D28: =INDEX((In!H$3:H$44),MATCH(Out!$C28,In!$A$3:$A$44,0)) -> 2592502 | E28: =INDEX((In!I$3:I$44),MATCH(Out!$C28,In!$A$3:$A$44,0)) -> 2597039 | F28: =INDEX((In!J$3:J$44),MATCH(Out!$C28,In!$A$3:$A$44,0)) -> 2601314 | I28: Parliament | J28: =INDEX((In!E$3:E$44),MATCH(Out!$I28,In!$A$3:$A$44,0)) -> 1394928 | K28: =INDEX((In!F$3:F$44),MATCH(Out!$I28,In!$A$3:$A$44,0)) -> 1391314 | L28: =INDEX((In!G$3:G$44),MATCH(Out!$I28,In!$A$3:$A$44,0)) -> 1367746
C29: Planning, Monitoring and Evaluation | D29: =INDEX((In!H$3:H$44),MATCH(Out!$C29,In!$A$3:$A$44,0)) -> 468357 | E29: =INDEX((In!I$3:I$44),MATCH(Out!$C29,In!$A$3:$A$44,0)) -> 470219 | F29: =INDEX((In!J$3:J$44),MATCH(Out!$C29,In!$A$3:$A$44,0)) -> 471120 | I29: Planning, Monitoring and Evaluation | J29: =INDEX((In!E$3:E$44),MATCH(Out!$I29,In!$A$3:$A$44,0)) -> 312014 | K29: =INDEX((In!F$3:F$44),MATCH(Out!$I29,In!$A$3:$A$44,0)) -> 310934 | L29: =INDEX((In!G$3:G$44),MATCH(Out!$I29,In!$A$3:$A$44,0)) -> 305667
C30: Police | D30: =INDEX((In!H$3:H$44),MATCH(Out!$C30,In!$A$3:$A$44,0)) -> 95748377 | E30: =INDEX((In!I$3:I$44),MATCH(Out!$C30,In!$A$3:$A$44,0)) -> 95589536 | F30: =INDEX((In!J$3:J$44),MATCH(Out!$C30,In!$A$3:$A$44,0)) -> 95800041 | I30: Police | J30: =INDEX((In!E$3:E$44),MATCH(Out!$I30,In!$A$3:$A$44,0)) -> 75285882 | K30: =INDEX((In!F$3:F$44),MATCH(Out!$I30,In!$A$3:$A$44,0)) -> 75088075 | L30: =INDEX((In!G$3:G$44),MATCH(Out!$I30,In!$A$3:$A$44,0)) -> 73816132
C31: Public Enterprises | D31: =INDEX((In!H$3:H$44),MATCH(Out!$C31,In!$A$3:$A$44,0)) -> 4359093 | E31: =INDEX((In!I$3:I$44),MATCH(Out!$C31,In!$A$3:$A$44,0)) -> 1920558 | F31: =INDEX((In!J$3:J$44),MATCH(Out!$C31,In!$A$3:$A$44,0)) -> 1921546 | I31: Public Enterprises | J31: =INDEX((In!E$3:E$44),MATCH(Out!$I31,In!$A$3:$A$44,0)) -> 182685 | K31: =INDEX((In!F$3:F$44),MATCH(Out!$I31,In!$A$3:$A$44,0)) -> 182212 | L31: =INDEX((In!G$3:G$44),MATCH(Out!$I31,In!$A$3:$A$44,0)) -> 179125
C32: Public Service and Administration | D32: =INDEX((In!H$3:H$44),MATCH(Out!$C32,In!$A$3:$A$44,0)) -> 543972 | E32: =INDEX((In!I$3:I$44),MATCH(Out!$C32,In!$A$3:$A$44,0)) -> 541897 | F32: =INDEX((In!J$3:J$44),MATCH(Out!$C32,In!$A$3:$A$44,0)) -> 542938 | I32: Public Service and Administration | J32: =INDEX((In!E$3:E$44),MATCH(Out!$I32,In!$A$3:$A$44,0)) -> 311983 | K32: =INDEX((In!F$3:F$44),MATCH(Out!$I32,In!$A$3:$A$44,0)) -> 312197 | L32: =INDEX((In!G$3:G$44),MATCH(Out!$I32,In!$A$3:$A$44,0)) -> 306909
C33: Public Service Commission | D33: =INDEX((In!H$3:H$44),MATCH(Out!$C33,In!$A$3:$A$44,0)) -> 280574 | E33: =INDEX((In!I$3:I$44),MATCH(Out!$C33,In!$A$3:$A$44,0)) -> 279258 | F33: =INDEX((In!J$3:J$44),MATCH(Out!$C33,In!$A$3:$A$44,0)) -> 279759 | I33: Public Service Commission | J33: =INDEX((In!E$3:E$44),MATCH(Out!$I33,In!$A$3:$A$44,0)) -> 212108 | K33: =INDEX((In!F$3:F$44),MATCH(Out!$I33,In!$A$3:$A$44,0)) -> 210298 | L33: =INDEX((In!G$3:G$44),MATCH(Out!$I33,In!$A$3:$A$44,0)) -> 206736
C34: Public Works and Infrastructure | D34: =INDEX((In!H$3:H$44),MATCH(Out!$C34,In!$A$3:$A$44,0)) -> 7948748 | E34: =INDEX((In!I$3:I$44),MATCH(Out!$C34,In!$A$3:$A$44,0)) -> 7936469 | F34: =INDEX((In!J$3:J$44),MATCH(Out!$C34,In!$A$3:$A$44,0)) -> 7940151 | I34: Public Works and Infrastructure | J34: =INDEX((In!E$3:E$44),MATCH(Out!$I34,In!$A$3:$A$44,0)) -> 551135 | K34: =INDEX((In!F$3:F$44),MATCH(Out!$I34,In!$A$3:$A$44,0)) -> 551007 | L34: =INDEX((In!G$3:G$44),MATCH(Out!$I34,In!$A$3:$A$44,0)) -> 541673
C35: Science and Innovation | D35: =INDEX((In!H$3:H$44),MATCH(Out!$C35,In!$A$3:$A$44,0)) -> 8486215 | E35: =INDEX((In!I$3:I$44),MATCH(Out!$C35,In!$A$3:$A$44,0)) -> 8424037 | F35: =INDEX((In!J$3:J$44),MATCH(Out!$C35,In!$A$3:$A$44,0)) -> 8427321 | I35: Science and Innovation | J35: =INDEX((In!E$3:E$44),MATCH(Out!$I35,In!$A$3:$A$44,0)) -> 391050 | K35: =INDEX((In!F$3:F$44),MATCH(Out!$I35,In!$A$3:$A$44,0)) -> 390047 | L35: =INDEX((In!G$3:G$44),MATCH(Out!$I35,In!$A$3:$A$44,0)) -> 383439
C36: Small Business Development | D36: =INDEX((In!H$3:H$44),MATCH(Out!$C36,In!$A$3:$A$44,0)) -> 2481876 | E36: =INDEX((In!I$3:I$44),MATCH(Out!$C36,In!$A$3:$A$44,0)) -> 2450353 | F36: =INDEX((In!J$3:J$44),MATCH(Out!$C36,In!$A$3:$A$44,0)) -> 2451403 | I36: Small Business Development | J36: =INDEX((In!E$3:E$44),MATCH(Out!$I36,In!$A$3:$A$44,0)) -> 150429 | K36: =INDEX((In!F$3:F$44),MATCH(Out!$I36,In!$A$3:$A$44,0)) -> 150049 | L36: =INDEX((In!G$3:G$44),MATCH(Out!$I36,In!$A$3:$A$44,0)) -> 147507
C37: Social Development | D37: =INDEX((In!H$3:H$44),MATCH(Out!$C37,In!$A$3:$A$44,0)) -> 199307640 | E37: =INDEX((In!I$3:I$44),MATCH(Out!$C37,In!$A$3:$A$44,0)) -> 206983361 | F37: =INDEX((In!J$3:J$44),MATCH(Out!$C37,In!$A$3:$A$44,0)) -> 207040738 | I37: Social Development | J37: =INDEX((In!E$3:E$44),MATCH(Out!$I37,In!$A$3:$A$44,0)) -> 498436 | K37: =INDEX((In!F$3:F$44),MATCH(Out!$I37,In!$A$3:$A$44,0)) -> 497356 | L37: =INDEX((In!G$3:G$44),MATCH(Out!$I37,In!$A$3:$A$44,0)) -> 488931
C38: Sports, Arts and Culture | D38: =INDEX((In!H$3:H$44),MATCH(Out!$C38,In!$A$3:$A$44,0)) -> 5540672 | E38: =INDEX((In!I$3:I$44),MATCH(Out!$C38,In!$A$3:$A$44,0)) -> 5551243 | F38: =INDEX((In!J$3:J$44),MATCH(Out!$C38,In!$A$3:$A$44,0)) -> 5553418 | I38: Sports, Arts and Culture | J38: =INDEX((In!E$3:E$44),MATCH(Out!$I38,In!$A$3:$A$44,0)) -> 372897 | K38: =INDEX((In!F$3:F$44),MATCH(Out!$I38,In!$A$3:$A$44,0)) -> 368872 | L38: =INDEX((In!G$3:G$44),MATCH(Out!$I38,In!$A$3:$A$44,0)) -> 362624
C39: Statistics South Africa | D39: =INDEX((In!H$3:H$44),MATCH(Out!$C39,In!$A$3:$A$44,0)) -> 4442039 | E39: =INDEX((In!I$3:I$44),MATCH(Out!$C39,In!$A$3:$A$44,0)) -> 2469420 | F39: =INDEX((In!J$3:J$44),MATCH(Out!$C39,In!$A$3:$A$44,0)) -> 2472698 | I39: Statistics South Africa | J39: =INDEX((In!E$3:E$44),MATCH(Out!$I39,In!$A$3:$A$44,0)) -> 1513836 | K39: =INDEX((In!F$3:F$44),MATCH(Out!$I39,In!$A$3:$A$44,0)) -> 1496293 | L39: =INDEX((In!G$3:G$44),MATCH(Out!$I39,In!$A$3:$A$44,0)) -> 1470947
C40: The Presidency | D40: =INDEX((In!H$3:H$44),MATCH(Out!$C40,In!$A$3:$A$44,0)) -> 588976 | E40: =INDEX((In!I$3:I$44),MATCH(Out!$C40,In!$A$3:$A$44,0)) -> 589731 | F40: =INDEX((In!J$3:J$44),MATCH(Out!$C40,In!$A$3:$A$44,0)) -> 590844 | I40: The Presidency | J40: =INDEX((In!E$3:E$44),MATCH(Out!$I40,In!$A$3:$A$44,0)) -> 367297 | K40: =INDEX((In!F$3:F$44),MATCH(Out!$I40,In!$A$3:$A$44,0)) -> 366486 | L40: =INDEX((In!G$3:G$44),MATCH(Out!$I40,In!$A$3:$A$44,0)) -> 360278
C41: Tourism | D41: =INDEX((In!H$3:H$44),MATCH(Out!$C41,In!$A$3:$A$44,0)) -> 2368546 | E41: =INDEX((In!I$3:I$44),MATCH(Out!$C41,In!$A$3:$A$44,0)) -> 2373894 | F41: =INDEX((In!J$3:J$44),MATCH(Out!$C41,In!$A$3:$A$44,0)) -> 2375386 | I41: Tourism | J41: =INDEX((In!E$3:E$44),MATCH(Out!$I41,In!$A$3:$A$44,0)) -> 331887 | K41: =INDEX((In!F$3:F$44),MATCH(Out!$I41,In!$A$3:$A$44,0)) -> 331016 | L41: =INDEX((In!G$3:G$44),MATCH(Out!$I41,In!$A$3:$A$44,0)) -> 325409
C42: Trade, Industry and Competition | D42: =INDEX((In!H$3:H$44),MATCH(Out!$C42,In!$A$3:$A$44,0)) -> 9284905 | E42: =INDEX((In!I$3:I$44),MATCH(Out!$C42,In!$A$3:$A$44,0)) -> 9305920 | F42: =INDEX((In!J$3:J$44),MATCH(Out!$C42,In!$A$3:$A$44,0)) -> 9311221 | I42: Trade, Industry and Competition | J42: =INDEX((In!E$3:E$44),MATCH(Out!$I42,In!$A$3:$A$44,0)) -> 1085619 | K42: =INDEX((In!F$3:F$44),MATCH(Out!$I42,In!$A$3:$A$44,0)) -> 1082824 | L42: =INDEX((In!G$3:G$44),MATCH(Out!$I42,In!$A$3:$A$44,0)) -> 1064481
C43: Traditional Affairs | D43: =INDEX((In!H$3:H$44),MATCH(Out!$C43,In!$A$3:$A$44,0)) -> 164415 | E43: =INDEX((In!I$3:I$44),MATCH(Out!$C43,In!$A$3:$A$44,0)) -> 164154 | F43: =INDEX((In!J$3:J$44),MATCH(Out!$C43,In!$A$3:$A$44,0)) -> 164401 | I43: Traditional Affairs | J43: =INDEX((In!E$3:E$44),MATCH(Out!$I43,In!$A$3:$A$44,0)) -> 78694 | K43: =INDEX((In!F$3:F$44),MATCH(Out!$I43,In!$A$3:$A$44,0)) -> 78492 | L43: =INDEX((In!G$3:G$44),MATCH(Out!$I43,In!$A$3:$A$44,0)) -> 77163
C44: Transport | D44: =INDEX((In!H$3:H$44),MATCH(Out!$C44,In!$A$3:$A$44,0)) -> 64202591 | E44: =INDEX((In!I$3:I$44),MATCH(Out!$C44,In!$A$3:$A$44,0)) -> 64947664 | F44: =INDEX((In!J$3:J$44),MATCH(Out!$C44,In!$A$3:$A$44,0)) -> 64966617 | I44: Transport | J44: =INDEX((In!E$3:E$44),MATCH(Out!$I44,In!$A$3:$A$44,0)) -> 529547 | K44: =INDEX((In!F$3:F$44),MATCH(Out!$I44,In!$A$3:$A$44,0)) -> 528176 | L44: =INDEX((In!G$3:G$44),MATCH(Out!$I44,In!$A$3:$A$44,0)) -> 519229
C45: Water and Sanitation | D45: =INDEX((In!H$3:H$44),MATCH(Out!$C45,In!$A$3:$A$44,0)) -> 15885555 | E45: =INDEX((In!I$3:I$44),MATCH(Out!$C45,In!$A$3:$A$44,0)) -> 15904681 | F45: =INDEX((In!J$3:J$44),MATCH(Out!$C45,In!$A$3:$A$44,0)) -> 15913671 | I45: Water and Sanitation | J45: =INDEX((In!E$3:E$44),MATCH(Out!$I45,In!$A$3:$A$44,0)) -> 1842062 | K45: =INDEX((In!F$3:F$44),MATCH(Out!$I45,In!$A$3:$A$44,0)) -> 1836922 | L45: =INDEX((In!G$3:G$44),MATCH(Out!$I45,In!$A$3:$A$44,0)) -> 1805805
C46: Women, Youth and Persons with Disabilities | D46: =INDEX((In!H$3:H$44),MATCH(Out!$C46,In!$A$3:$A$44,0)) -> 744187 | E46: =INDEX((In!I$3:I$44),MATCH(Out!$C46,In!$A$3:$A$44,0)) -> 743349 | F46: =INDEX((In!J$3:J$44),MATCH(Out!$C46,In!$A$3:$A$44,0)) -> 743862 | I46: Women, Youth and Persons with Disabilities | J46: =INDEX((In!E$3:E$44),MATCH(Out!$I46,In!$A$3:$A$44,0)) -> 112139 | K46: =INDEX((In!F$3:F$44),MATCH(Out!$I46,In!$A$3:$A$44,0)) -> 112109 | L46: =INDEX((In!G$3:G$44),MATCH(Out!$I46,In!$A$3:$A$44,0)) -> 110210

Sheet In (hidden)
B1: Hennie | C1: Hennie | D1: Hennie | E1: Donald | F1: Donald | G1: Donald | H1: Total | I1: Total | J1: Total
A2: Excl Interest and Contingency | B2: 2021/22 Non-CoE | C2: 2022/23 Non-CoE | D2: 2023/24 Non-CoE | E2: 2021/22 CoE | F2: 2022/23 CoE | G2: 2023/24 CoE | H2: 2021/22 | I2: 2022/23 | J2: 2023/24
A3: Agriculture, Land Reform and Rural Development | B3: =ROUND(L3,0) -> 12362696 | C3: =ROUND(M3,0) -> 12298690 | D3: 12382972 | E3: =IFERROR(INDEX((C$55:C$95),MATCH($A3,$B$55:$B$95,0)),0) -> 4099498 | F3: 4089644 | G3: 4020368 | H3: =SUM(B3,E3) -> 16462194 | I3: 16388334 | J3: 16403340 | L3: 12362695.7 | M3: 12298689.84 | N3: 12382972.35
A4: Basic Education | B4: =ROUND(L4,0) -> 25183156 | C4: =ROUND(M4,0) -> 25549272 | D4: =ROUND(N4,0) -> 25566874 | E4: 541405 | F4: 540000 | G4: 530853 | H4: 25724561 | I4: 26089272 | J4: 26097727 | L4: 25183155.97 | M4: 25549272.16 | N4: 25566874.02
A5: Civilian Secretariat for the Police Service | B5: 44336 | C5: 44657 | D5: 46717 | E5: 103839 | F5: 103564 | G5: 101809 | H5: 148175 | I5: 148221 | J5: 148526 | L5: 44335.84985 | M5: 44657.07404 | N5: 46716.73984
A6: Communications and Digital Technologies | B6: 3270951 | C6: 1995929 | D6: 2002814 | E6: 322804 | F6: 321757 | G6: 316307 | H6: 3593755 | I6: 2317686 | J6: 2319121 | L6: 3270950.514 | M6: 1995928.855 | N6: 2002814.05
A7: Cooperative Governance | B7: 97916926 | C7: 101708751 | D7: 101743512 | E7: 366155 | F7: 365032 | G7: 358848 | H7: 98283081 | I7: 102073783 | J7: 102102360 | L7: 97916925.54 | M7: 101708751.2 | N7: 101743512.2
A8: Correctional Services | B8: 8053570 | C8: 8139615 | D8: 8484094 | E8: 17428197 | F8: 17369347 | G8: 17075121 | H8: 25481767 | I8: 25508962 | J8: 25559215 | L8: 8053569.723 | M8: 8139614.721 | N8: 8484094.186
A9: Defence | B9: 16504237 | C9: 16609245 | D9: 17183728 | E9: 28894120 | F9: 28819486 | G9: 28331302 | H9: 45398357 | I9: 45428731 | J9: 45515030 | L9: 16504237.04 | M9: 16609245.23 | N9: 17183728.43
A10: Employment and Labour | B10: 2058458 | C10: 2056262 | D10: 2084095 | E10: 1382667 | F10: 1379094 | G10: 1355733 | H10: 3441125 | I10: 3435356 | J10: 3439828 | L10: 2058457.622 | M10: 2056262.348 | N10: 2084094.624
A11: Environment, Forestry and Fisheries | B11: 6553130 | C11: 6557081 | D11: 6596462 | E11: 1909148 | F11: 1903696 | G11: 1871449 | H11: 8462278 | I11: 8460777 | J11: 8467911 | L11: 6553129.646 | M11: 6557081.31 | N11: 6596461.562
A12: Government Communication and Information System | B12: 410588 | C12: 410313 | D12: 415848 | E12: 273728 | F12: 273238 | G12: 268609 | H12: 684316 | I12: 683551 | J12: 684457 | L12: 410588.4767 | M12: 410312.7099 | N12: 415847.5075
A13: Health | B13: 56126406 | C13: 56977271 | D13: 57008316 | E13: 834283 | F13: 824411 | G13: 810446 | H13: 56960689 | I13: 57801682 | J13: 57818762 | L13: 56126406.32 | M13: 56977271.38 | N13: 57008315.82
A14: Higher Education and Training | B14: 104241488 | C14: 105761203 | D14: 105977783 | E14: 9527912 | F14: 9503041 | G14: 9342066 | H14: 113769400 | I14: 115264244 | J14: 115319849 | L14: 104241488.5 | M14: 105761203.3 | N14: 105977783.5
A15: Home Affairs | B15: 5093748 | C15: 5154397 | D15: 5222747 | E15: 3592336 | F15: 3547576 | G15: 3487482 | H15: 8686084 | I15: 8701973 | J15: 8710229 | L15: 5093747.981 | M15: 5154397.253 | N15: 5222746.569
A16: Human Settlements | B16: 29515435 | C16: 29516759 | D16: 29532681 | E16: 401740 | F16: 400697 | G16: 393910 | H16: 29917175 | I16: 29917456 | J16: 29926591 | L16: 29515434.98 | M16: 29516759.29 | N16: 29532681.15
A17: Independent Police Investigative Directorate | B17: 112292 | C17: 113026 | D17: 117489 | E17: 224816 | F17: 224215 | G17: 220417 | H17: 337108 | I17: 337241 | J17: 337906 | L17: 112291.8286 | M17: 113025.553 | N17: 117488.8036
A18: International Relations and Cooperation | B18: 3553716 | C18: 3582209 | D18: 3639252 | E18: 2841965 | F18: 2834719 | G18: 2786701 | H18: 6395681 | I18: 6416928 | J18: 6425953 | L18: 3553716.316 | M18: 3582208.945 | N18: 3639252.384
A19: Justice and Constitutional Development | B19: 9205303 | C19: 9229128 | D19: 9468250 | E19: 11990486 | F19: 11960325 | G19: 11757725 | H19: 21195789 | I19: 21189453 | J19: 21225975 | L19: 9205302.535 | M19: 9229128.328 | N19: 9468249.922
A20: Military Veterans | B20: 529422 | C20: 529487 | D20: 532120 | E20: 126686 | F20: 126273 | G20: 124134 | H20: 656108 | I20: 655760 | J20: 656254 | L20: 529421.985 | M20: 529487.0085 | N20: 532120.0627
A21: Mineral Resources and Energy | B21: 7698107 | C21: 8297998 | D21: 8320686 | E21: 1036210 | F21: 1033526 | G21: 1016019 | H21: 8734317 | I21: 9331524 | J21: 9336705 | L21: 7698106.651 | M21: 8297997.786 | N21: 8320686.212
A22: National School of Government | B22: 139668 | C22: 138217 | D22: 139395 | E22: 57849 | F22: 57700 | G22: 56722 | H22: 197517 | I22: 195917 | J22: 196117 | L22: 139668.4791 | M22: 138216.5451 | N22: 139395.2104
A23: National Treasury | B23: 818909528 | C23: 861678814 | D23: 890262091 | E23: 860894 | F23: 858670 | G23: 844125 | H23: 819770422 | I23: 862537484 | J23: 891106216 | L23: 818909527.7 | M23: 861678813.6 | N23: 890262090.7
A24: Not defined | B24: 3773184 | C24: 5489386 | D24: 5490874 | E24: 0 | F24: 0 | G24: 0 | H24: 3773184 | I24: 5489386 | J24: 5490874 | L24: 3773183.536 | M24: 5489386.496 | N24: 5490873.818
A25: Office of the Chief Justice | B25: 576358 | C25: 581270 | D25: 615748 | E25: 1733123 | F25: 1729844 | G25: 1700541 | H25: 2309481 | I25: 2311114 | J25: 2316289 | L25: 576357.5583 | M25: 581270.2211 | N25: 615748.3897
A26: Parliament | B26: 1197574 | C26: 1205725 | D26: 1233568 | E26: 1394928 | F26: 1391314 | G26: 1367746 | H26: 2592502 | I26: 2597039 | J26: 2601314 | L26: 1197574.496 | M26: 1205725.446 | N26: 1233568.057
A27: Planning, Monitoring and Evaluation | B27: 156343 | C27: 159285 | D27: 165453 | E27: 312014 | F27: 310934 | G27: 305667 | H27: 468357 | I27: 470219 | J27: 471120 | L27: 156342.8031 | M27: 159284.613 | N27: 165452.5776
A28: Police | B28: 20462495 | C28: 20501461 | D28: 21983909 | E28: 75285882 | F28: 75088075 | G28: 73816132 | H28: 95748377 | I28: 95589536 | J28: 95800041 | L28: 20462495.02 | M28: 20501460.6 | N28: 21983909.24
A29: Public Enterprises | B29: 4176408 | C29: 1738346 | D29: 1742421 | E29: 182685 | F29: 182212 | G29: 179125 | H29: 4359093 | I29: 1920558 | J29: 1921546 | L29: 4176407.625 | M29: 1738345.979 | N29: 1742420.555
A30: Public Service and Administration | B30: 231989 | C30: 229700 | D30: 236029 | E30: 311983 | F30: 312197 | G30: 306909 | H30: 543972 | I30: 541897 | J30: 542938 | L30: 231989.4732 | M30: 229699.7183 | N30: 236028.8042
A31: Public Service Commission | B31: 68466 | C31: 68960 | D31: 73023 | E31: 212108 | F31: 210298 | G31: 206736 | H31: 280574 | I31: 279258 | J31: 279759 | L31: 68466.30186 | M31: 68959.50295 | N31: 73023.1923
A32: Public Works and Infrastructure | B32: 7397613 | C32: 7385462 | D32: 7398478 | E32: 551135 | F32: 551007 | G32: 541673 | H32: 7948748 | I32: 7936469 | J32: 7940151 | L32: 7397612.781 | M32: 7385461.791 | N32: 7398477.771
A33: Science and Innovation | B33: 8095165 | C33: 8033990 | D33: 8043882 | E33: 391050 | F33: 390047 | G33: 383439 | H33: 8486215 | I33: 8424037 | J33: 8427321 | L33: 8095165.317 | M33: 8033989.996 | N33: 8043881.561
A34: Small Business Development | B34: 2331447 | C34: 2300304 | D34: 2303896 | E34: 150429 | F34: 150049 | G34: 147507 | H34: 2481876 | I34: 2450353 | J34: 2451403 | L34: 2331447.41 | M34: 2300304.216 | N34: 2303895.865
A35: Social Development | B35: 198809204 | C35: 206486005 | D35: 206551807 | E35: 498436 | F35: 497356 | G35: 488931 | H35: 199307640 | I35: 206983361 | J35: 207040738 | L35: 198809204.3 | M35: 206486005.1 | N35: 206551806.8
A36: Sports, Arts and Culture | B36: 5167775 | C36: 5182371 | D36: 5190794 | E36: 372897 | F36: 368872 | G36: 362624 | H36: 5540672 | I36: 5551243 | J36: 5553418 | L36: 5167774.834 | M36: 5182371.33 | N36: 5190793.914
A37: Statistics South Africa | B37: 2928203 | C37: 973127 | D37: 1001751 | E37: 1513836 | F37: 1496293 | G37: 1470947 | H37: 4442039 | I37: 2469420 | J37: 2472698 | L37: 2928202.666 | M37: 973127.3314 | N37: 1001750.773
A38: The Presidency | B38: 221679 | C38: 223245 | D38: 230566 | E38: 367297 | F38: 366486 | G38: 360278 | H38: 588976 | I38: 589731 | J38: 590844 | L38: 221679.2492 | M38: 223245.1147 | N38: 230566.3295
A39: Tourism | B39: 2036659 | C39: 2042878 | D39: 2049977 | E39: 331887 | F39: 331016 | G39: 325409 | H39: 2368546 | I39: 2373894 | J39: 2375386 | L39: 2036659.416 | M39: 2042877.669 | N39: 2049976.683
A40: Trade, Industry and Competition | B40: 8199286 | C40: 8223096 | D40: 8246740 | E40: 1085619 | F40: 1082824 | G40: 1064481 | H40: 9284905 | I40: 9305920 | J40: 9311221 | L40: 8199285.521 | M40: 8223095.67 | N40: 8246740.254
A41: Traditional Affairs | B41: 85721 | C41: 85662 | D41: 87238 | E41: 78694 | F41: 78492 | G41: 77163 | H41: 164415 | I41: 164154 | J41: 164401 | L41: 85721.24699 | M41: 85661.90988 | N41: 87237.64799
A42: Transport | B42: 63673044 | C42: 64419488 | D42: 64447388 | E42: 529547 | F42: 528176 | G42: 519229 | H42: 64202591 | I42: 64947664 | J42: 64966617 | L42: 63673044.3 | M42: 64419487.79 | N42: 64447387.76
A43: Water and Sanitation | B43: 14043493 | C43: 14067759 | D43: 14107866 | E43: 1842062 | F43: 1836922 | G43: 1805805 | H43: 15885555 | I43: 15904681 | J43: 15913671 | L43: 14043492.73 | M43: 14067759.35 | N43: 14107866.43
A44: Women, Youth and Persons with Disabilities | B44: 632048 | C44: 631240 | D44: 633652 | E44: =IFERROR(INDEX((C$55:C$95),MATCH($A44,$B$55:$B$95,0)),0) -> 112139 | F44: 112109 | G44: 110210 | H44: 744187 | I44: 743349 | J44: 743862 | L44: 632047.7499 | M44: 631239.7566 | N44: 633651.5351
B45: =SUM(B3:B44) -> 1551747315 | C45: 1606377084 | D45: 1638562986 | E45: 174074489 | F45: 173550534 | G45: 170610698 | H45: 1725821804 | I45: 1779927618 | J45: 1809173684
A50: Plug PSRAF numbers here - will feed trhough to the top
A51: PSRAF Final CoE numbers
A52: Vote | B52: Department/Entity | C52: 2021 MTEF Ceilings
C53: 2021/22 | D53: 2022/23 | E53: 2023/24
C54: 174066005.7 | D54: 173531814.4 | E54: 170160999.2
A55: Vote 01 | B55: The Presidency | C55: =ROUND(H55,0) -> 367297 | D55: =ROUND(I55,0) -> 366486 | E55: 360278 | F55: inserted new numbers 24 Aug 2020 | H55: 367296.6026 | I55: 366485.8321 | J55: 360277.7982
A56: Vote 02 | B56: Parliament | C56: =ROUND(H56,0) -> 1394928 | D56: =ROUND(I56,0) -> 1391314 | E56: =ROUND(J56,0) -> 1367746 | H56: 1394928.426 | I56: 1391313.668 | J56: 1367745.71
A57: Vote 03 | B57: Cooperative Governance | C57: 366155 | D57: 365032 | E57: 358848 | H57: 366154.9084 | I57: 365031.8995 | J57: 358848.4943
A58: Vote 04 | B58: Government Communication and Information System | C58: 273728 | D58: 273238 | E58: 268609 | H58: 273728.1486 | I58: 273237.8494 | J58: 268609.3762
A59: Vote 05 | B59: Home Affairs | C59: 3592336 | D59: 3547576 | E59: 3487482 | H59: 3592335.549 | I59: 3547576.14 | J59: 3487482.485
A60: Vote 06 | B60: International Relations and Cooperation | C60: 2841965 | D60: 2834719 | E60: 2786701 | H60: 2841964.82 | I60: 2834719.448 | J60: 2786701.126
A61: Vote 07 | B61: National School of Government | C61: 57849 | D61: 57700 | E61: 56722 | H61: 57848.74066 | I61: 57699.83018 | J61: 56722.43222
A62: Vote 08 | B62: National Treasury | C62: 860894 | D62: 858670 | E62: 844125 | H62: 860893.9975 | I62: 858670.291 | J62: 844124.9693
A63: Vote 09 | B63: Planning, Monitoring and Evaluation | C63: 312014 | D63: 310934 | E63: 305667 | H63: 312014.0634 | I63: 310934.4618 | J63: 305667.4323
A64: Vote 10 | B64: Public Enterprises | C64: 182685 | D64: 182212 | E64: 179125 | H64: 182684.9968 | I64: 182211.5222 | J64: 179124.9764
A65: Vote 11 | B65: Public Service and Administration | C65: 311983 | D65: 312197 | E65: 306909 | H65: 311982.7247 | I65: 312197.1359 | J65: 306908.7175
A66: Vote 12 | B66: Public Service Commission | C66: 212108 | D66: 210298 | E66: 206736 | H66: 212107.9882 | I66: 210297.8732 | J66: 206735.5627
A67: Vote 13 | B67: Public Works and Infrastructure | C67: 551135 | D67: 551007 | E67: 541673 | H67: 551134.6062 | I67: 551007.1775 | J67: 541673.4708
A68: Vote 14 | B68: Statistics South Africa | C68: 1513836 | D68: 1496293 | E68: 1470947 | H68: 1513836.052 | I68: 1496292.923 | J68: 1470946.685
A69: Vote 15 | B69: Traditional Affairs | C69: 78694 | D69: 78492 | E69: 77163 | H69: 78694.23214 | I69: 78492.39692 | J69: 77162.78627
A70: Vote 16 | B70: Basic Education | C70: 541405 | D70: 540000 | E70: 530853 | H70: 541404.9698 | I70: 540000.3755 | J70: 530853.117
A71: Vote 17 | B71: Higher Education and Training | C71: 9527912 | D71: 9503041 | E71: 9342066 | H71: 9527912.445 | I71: 9503041.424 | J71: 9342066.023
A72: Vote 18 | B72: Health | C72: 834283 | D72: 824411 | E72: 810446 | H72: 834282.6022 | I72: 824410.5489 | J72: 810445.5653
A73: Vote 19 | B73: Social Development | C73: 498436 | D73: 497356 | E73: 488931 | H73: 498436.3637 | I73: 497355.6067 | J73: 488930.7231
A74: Vote 20 | B74: Women, Youth and Persons with Disabilities | C74: 112139 | D74: 112109 | E74: 110210 | H74: 112139.259 | I74: 112109.1814 | J74: 110210.124
A75: Vote 21 | B75: Civilian Secretariat for the Police Service | C75: 103839 | D75: 103564 | E75: 101809 | H75: 103839.351 | I75: 103563.5845 | J75: 101809.2841
A76: Vote 22 | B76: Correctional Services | C76: 17428197 | D76: 17369347 | E76: 17075121 | H76: 17428197.08 | I76: 17369346.52 | J76: 17075120.98
A77: Vote 23 | B77: Defence | C77: 28894120 | D77: 28819486 | E77: 28331302 | H77: 28894119.78 | I77: 28819485.64 | J77: 28331302.12
A78: Vote 24 | B78: Independent Police Investigative Directorate | C78: 224816 | D78: 224215 | E78: 220417 | H78: 224815.9829 | I78: 224215.0502 | J78: 220416.9916
A79: Vote 25 | B79: Justice and Constitutional Development | C79: 11990486 | D79: 11960325 | E79: 11757725 | H79: 11990485.77 | I79: 11960324.76 | J79: 11757724.56
A80: Vote 26 | B80: Military Veterans | C80: 126686 | D80: 126273 | E80: 124134 | H80: 126686.0918 | I80: 126272.741 | J80: 124133.7621
A81: Vote 27 | B81: Office of the Chief Justice | C81: 1733123 | D81: 1729844 | E81: 1700541 | H81: 1733122.954 | I81: 1729843.834 | J81: 1700541.393
A82: Vote 28 | B82: Police | C82: 75285882 | D82: 75088075 | E82: 73816132 | H82: 75285882.46 | I82: 75088075.33 | J82: 73816131.7
A83: Vote 29 | B83: Agriculture, Land Reform and Rural Development | C83: 4099498 | D83: 4089644 | E83: 4020368 | H83: 4099498.388 | I83: 4089644.27 | J83: 4020368.33
A84: Vote 30 | B84: Communications and Digital Technologies | C84: 322804 | D84: 321757 | E84: 316307 | H84: 322803.5958 | I84: 321757.4428 | J84: 316307.079
A85: Vote 31 | B85: Employment and Labour | C85: 1382667 | D85: 1379094 | E85: 1355733 | H85: 1382667.396 | I85: 1379094.146 | J85: 1355733.18
A86: Vote 32 | B86: Environment, Forestry and Fisheries | C86: 1909148 | D86: 1903696 | E86: 1871449 | H86: 1909147.673 | I86: 1903695.978 | J86: 1871448.595
A87: Vote 33 | B87: Human Settlements | C87: 401740 | D87: 400697 | E87: 393910 | H87: 401739.7418 | I87: 400697.3316 | J87: 393909.7769
A88: Vote 34 | B88: Mineral Resources and Energy | C88: 1036210 | D88: 1033526 | E88: 1016019 | H88: 1036210.194 | I88: 1033526.478 | J88: 1016019.205
A89: Vote 35 | B89: Science and Innovation | C89: 391050 | D89: 390047 | E89: 383439 | H89: 391050.2816 | I89: 390046.5268 | J89: 383439.3899
A90: Vote 36 | B90: Small Business Development | C90: 150429 | D90: 150049 | E90: 147507 | H90: 150428.6546 | I90: 150048.6704 | J90: 147506.9426
A91: Vote 37 | B91: Sports, Arts and Culture | C91: 372897 | D91: 368872 | E91: 362624 | H91: 372897.1521 | I91: 368872.3715 | J91: 362623.9111
A92: Vote 38 | B92: Tourism | C92: 331887 | D92: 331016 | E92: 325409 | H92: 331886.6782 | I92: 331015.8659 | J92: 325408.6703
A93: Vote 39 | B93: Trade, Industry and Competition | C93: 1085619 | D93: 1082824 | E93: 1064481 | H93: 1085618.925 | I93: 1082823.776 | J93: 1064481.438
A94: Vote 40 | B94: Transport | C94: 529547 | D94: 528176 | E94: 519229 | H94: 529546.8394 | I94: 528175.9444 | J94: 519228.9841
A95: Vote 41 | B95: Water and Sanitation | C95: 1842062 | D95: 1836922 | E95: 1805805 | H95: 1842061.825 | I95: 1836921.546 | J95: 1805805.278
